lending/lending_fUSD_20250501
["ID","MTS","AMOUNT","RATE_DAILY","PERIOD"]
[359574238,1746136717161,2000.0,0.00032877,60]
[359574240,1746136784183,694.81,0.00017489,2]
[359574241,1746136812355,1000.0,0.00032877,60]
[359574242,1746136865680,800.0,0.00032877,60]
[359574243,1746136870615,-157.80154619,0.00019388,2]
[359574244,1746136878401,391.67,0.00019199,2]
[359574245,1746136943257,150.0,0.00019015,2]
[359574246,1746137014656,250.0,0.00019007,7]
[359574247,1746137062321,-155.66344872,0.0001938,2]
[359574248,1746137062349,-2363.09845381,0.00019388,2]
[359574249,1746137062375,-188.22089856,0.0001948,2]
[359574250,1746137062405,-1500.0,0.0001948,2]
[359574251,1746137062429,-250.0,0.00019498,2]
[359574252,1746137062455,-200.0,0.00019498,2]
[359574253,1746137062479,-300.0,0.00019515,2]
[359574254,1746137062509,-626.7,0.00019516,2]
[359574255,1746137062535,-1200.0,0.00019516,2]
[359574256,1746137062560,-116.61719891,0.00019516,2]
[359574257,1746137204395,500.0,0.00019285,2]
[359574258,1746137211769,182.41,0.00019285,2]
[359574260,1746137236747,1480.71,0.00019272,2]
[359574261,1746137256832,-155.66344872,0.0001933,2]
[359574267,1746137411650,-203.2957963,0.00019321,2]
[359574269,1746137431699,-74.99908166,0.00019321,2]
[359574270,1746137431709,-925.00091834,0.00019338,2]
[359574271,1746137431721,-927.41908166,0.00019338,2]
[359574272,1746137431731,-486.68,0.00019343,2]
[359574273,1746137431740,-250.0,0.0001943,2]
[359574274,1746137431751,-200.0,0.00019467,2]
[359574275,1746137431762,-200.0,0.00019499,2]
[359574276,1746137431772,-607.61,0.00019504,2]
[359574277,1746137431783,-967.52863396,0.00019516,2]
[359574278,1746137431799,-232.47136604,0.00019516,2]
[359574279,1746137431809,-183.0,0.00019516,2]
[359574280,1746137431818,-23900.0,0.00019517,2]
[359574281,1746137431828,-744.52713209,0.0001961,2]
[359574282,1746137431837,-13511.94,0.00019662,2]
[359574283,1746137431847,-564.1138771,0.0001969,2]
[359574284,1746137431856,-694.81,0.00019753,2]
[359574285,1746137431865,-2065.85,0.00019753,2]
[359574286,1746137431875,-850.0,0.00019799,2]
[359574287,1746137431885,-744.5271321,0.00019799,2]
[359574288,1746137431894,-2532.0675,0.000198,2]
[359574289,1746137431904,-1517.8986,0.000198,2]
[359574290,1746137431913,-213.30141854,0.000198,2]
[359574291,1746137431923,-6002.88059506,0.000198,2]
[359574292,1746137431932,-569.75557481,0.000198,2]
[359574293,1746137431942,-5754.1684569,0.000198,2]
[359574295,1746137431951,-155.08545776,0.000198,2]
[359574297,1746137431960,-205.74733371,0.000198,2]
[359574298,1746137431970,-855.21,0.0001989,2]
[359574299,1746137431981,-855.21,0.0001989,2]
[359574300,1746137431991,-855.21,0.0001989,2]
[359574301,1746137432000,-855.21,0.0001989,2]
[359574302,1746137432009,-855.21,0.0001989,2]
[359574303,1746137432018,-743.4846377,0.0001989,2]
[359574304,1746137432028,-855.21,0.0001989,2]
[359574305,1746137432037,-855.21,0.0001989,2]
[359574306,1746137432049,-855.21,0.0001989,2]
[359574307,1746137432059,-1375.84,0.0001989,2]
[359574309,1746137432069,-1375.84,0.0001989,2]
[359574311,1746137432078,-475.74929836,0.00019899,2]
[359574312,1746137432087,-153.6447,0.000199,2]
[359574313,1746137432097,-7114.56432241,0.000199,2]
[359574314,1746137432109,-17362.01667759,0.000199,2]
[359574315,1746137432119,-41700.0,0.000199,2]
[359574316,1746137432128,-1488.1735,0.000199,2]
[359574317,1746137432137,-169.85797934,0.000199,2]
[359574318,1746137432146,-938.0889,0.000199,2]
[359574319,1746137432156,-184.3401,0.000199,2]
[359574320,1746137432165,-6864.3715,0.000199,2]
[359574321,1746137432176,-4341.6109,0.000199,2]
[359574322,1746137432185,-664.5333,0.000199,2]
[359574323,1746137432194,-1034621.2381,0.000199,2]
[359574324,1746137432203,-10952.806,0.000199,2]
[359574325,1746137432213,-1293.6604,0.000199,2]
[359574326,1746137432222,-529.65030636,0.000199,2]
[359574327,1746137432232,-896.72516718,0.000199,2]
[359574328,1746137432244,-4000.0,0.00019911,2]
[359574329,1746137432254,-500.0,0.00019973,2]
[359574330,1746137432263,-500.0,0.00019973,2]
[359574331,1746137432272,-579.77007519,0.00019973,2]
[359574332,1746137432282,-155.30156975,0.00019973,2]
[359574333,1746137432291,-500.0,0.00019973,2]
[359574334,1746137432301,-594.19862053,0.00019973,2]
[359574335,1746137432315,-520.57578932,0.00019973,2]
[359574336,1746137432324,-271.70452991,0.00019973,2]
[359574337,1746137432334,-743.4846377,0.0001999,2]
[359574338,1746137432343,-245848.60689077,0.0002,2]
[359574339,1746137432355,-1205560.2784943,0.0002,2]
[359574340,1746137432385,-640.20475102,0.0002,2]
[359574341,1746137432401,-1440.66790997,0.0002,2]
[359574343,1746137437883,-58131.58604024,0.0002,2]
[359574344,1746137438000,-1723659.09201772,0.0002,2]
[359574345,1746137438012,-250.0,0.0002,2]
[359574346,1746137438026,-250.0,0.0002,2]
[359574347,1746137438039,-250.0,0.0002,2]
[359574348,1746137438051,-250.0,0.0002,2]
[359574350,1746137438063,-250.0,0.0002,2]
[359574352,1746137438077,-250.0,0.0002,2]
[359574354,1746137438091,-250.0,0.0002,2]
[359574356,1746137438103,-250.0,0.0002,2]
[359574358,1746137438116,-250.0,0.0002,2]
[359574360,1746137438128,-250.0,0.0002,2]
[359574362,1746137438140,-358.6,0.0002,2]
[359574364,1746137438149,-260.22705525,0.0002,2]
[359574366,1746137438159,-1000.0,0.00020067,2]
[359574368,1746137438168,-200.0,0.00020237,2]
[359574370,1746137438177,-6002.88059499,0.00020347,2]
[359574372,1746137438186,-5754.16845688,0.00020347,2]
[359574374,1746137438196,-15982.50076877,0.000207,2]
[359574375,1746137438206,-246.0,0.00020809,2]
[359574377,1746137438215,-6002.88059499,0.00020893,2]
[359574379,1746137438225,-5754.16845688,0.00020893,2]
[359574381,1746137438234,-1154.72508518,0.00021,2]
[359574383,1746137438246,-190.58164633,0.00021,2]
[359574385,1746137438256,-350.0,0.00021,2]
[359574387,1746137438265,-150.0,0.00021045,2]
[359574389,1746137438274,-250.0,0.00021272,2]
[359574390,1746137438283,-200.0,0.00021272,2]
[359574392,1746137438293,-250.0,0.00021272,2]
[359574394,1746137438302,-200.0,0.00021272,2]
[359574396,1746137438316,-735.0,0.00021363,2]
[359574398,1746137438326,-250.0,0.00021372,2]
[359574400,1746137438335,-200.0,0.00021372,2]
[359574402,1746137438345,-6002.88059499,0.0002144,2]
[359574418,1746137438785,-5754.16845688,0.0002144,2]
[359574422,1746137438819,-194.16,0.0002154,2]
[359574426,1746137438847,-7314.86831856,0.000217,2]
[359574428,1746137438858,-1268.09,0.00021727,2]
[359574430,1746137438868,-538.24,0.00021799,2]
[359574432,1746137438877,-312.6,0.00021917,2]
[359574434,1746137438887,-195.01,0.00021922,2]
[359574435,1746137438896,-6002.88059499,0.00021987,2]
[359574436,1746137438906,-5754.16845688,0.00021987,2]
[359574437,1746137438916,-247.77380099,0.00022,2]
[359574438,1746137438925,-500.0,0.00022,2]
[359574439,1746137438934,-694.81,0.00022016,2]
[359574440,1746137438944,-377.0,0.00022082,2]
[359574441,1746137438954,-232.19998928,0.0002211,2]
[359574442,1746137438963,-5523.7254445,0.000225,2]
[359574443,1746137438973,-6002.88059499,0.00022533,2]
[359574444,1746137438983,-5754.16845688,0.00022533,2]
[359574445,1746137438993,-1000.0,0.00022576,2]
[359574446,1746137439002,-150.0,0.00022811,2]
[359574447,1746137439012,-169.85797928,0.00022914,2]
[359574448,1746137439022,-400.0,0.00023,2]
[359574449,1746137439031,-200.0,0.00023,2]
[359574450,1746137439040,-6002.88059499,0.0002308,2]
[359574451,1746137439050,-5754.16845688,0.0002308,2]
[359574452,1746137439060,-19106.16773526,0.000232,2]
[359574453,1746137439069,-312.6,0.00023287,2]
[359574454,1746137439078,-6002.88059499,0.00023627,2]
[359574455,1746137439087,-5754.16845688,0.00023627,2]
[359574456,1746137439097,-368.95,0.00023836,2]
[359574457,1746137439107,-166.66,0.00023951,2]
[359574458,1746137439116,-10029.81877166,0.00024,2]
[359574459,1746137439126,-6002.88059499,0.00024173,2]
[359574460,1746137439136,-5754.16845688,0.00024173,2]
[359574461,1746137439145,-694.81,0.0002428,2]
[359574462,1746137439155,-312.6,0.00024657,2]
[359574463,1746137439164,-6002.88059499,0.0002472,2]
[359574464,1746137439173,-5754.16845688,0.0002472,2]
[359574465,1746137439183,-166.66,0.00024742,2]
[359574466,1746137439193,-212133.378762,0.000248,2]
[359574467,1746137439202,-500.0,0.0002482,2]
[359574468,1746137439212,-500.0,0.00024843,2]
[359574469,1746137439221,-500.0,0.00024843,2]
[359574470,1746137439230,-536.76792142,0.00024875,2]
[359574471,1746137439240,-500.0,0.00024875,2]
[359574472,1746137439250,-500.0,0.00024875,2]
[359574473,1746137439259,-500.0,0.00024875,2]
[359574474,1746137439268,-545.87496632,0.00024875,2]
[359574475,1746137439277,-153.86367941,0.00024875,2]
[359574476,1746137439286,-500.0,0.00024875,2]
[359574477,1746137439295,-500.0,0.00024875,2]
[359574478,1746137439304,-500.0,0.00024875,2]
[359574479,1746137439317,-500.0,0.00024875,2]
[359574480,1746137439327,-500.0,0.00024875,2]
[359574481,1746137439336,-500.0,0.00024875,2]
[359574482,1746137439346,-302.17365237,0.00024875,2]
[359574483,1746137439356,-233.31198073,0.00024899,2]
[359574484,1746137439365,-151.0,0.000249,7]
[359574485,1746137439374,-151.0,0.000249,7]
[359574486,1746137439384,-152.544242,0.000249,7]
[359574487,1746137439395,-420790.788731,0.000249,2]
[359574488,1746137439405,-382.97909322,0.00025,2]
[359574489,1746137439415,-1028.11380351,0.00025,2]
[359574490,1746137439425,-8170.02163448,0.00025,2]
[359574491,1746137439435,-161.57638157,0.00025,2]
[359574492,1746137439444,-450.0,0.00025,2]
[359574493,1746137439454,-5653.5816143,0.00025,3]
[359574494,1746137439464,-1000.0,0.00025084,2]
[359574495,1746137439475,-3263.75796655,0.000251,2]
[359574496,1746137439486,-560.70220814,0.00025156,2]
[359574497,1746137439495,-166.66,0.00025533,2]
[359574498,1746137439505,-169.85797928,0.00025927,2]
[359574499,1746137439514,-312.6,0.00026027,2]
[359574500,1746137439523,-166.66,0.00026323,2]
[359574501,1746137439533,-694.81,0.00026544,2]
[359574502,1746137439542,-1138.0,0.00026929,2]
[359574503,1746137439552,-500.0,0.00027,2]
[359574504,1746137439563,-166.66,0.00027114,2]
[359574505,1746137439573,-481.135,0.00027169,2]
[359574506,1746137439583,-797.0,0.00027169,2]
[359574507,1746137439592,-342.18308872,0.00027397,2]
[359574508,1746137439602,-312.6,0.00027397,2]
[359574509,1746137439611,-1000.0,0.00027397,2]
[359574510,1746137439621,-189.09,0.00027397,2]
[359574511,1746137439630,-897.2,0.00027397,2]
[359574512,1746137439640,-195.01,0.00027403,2]
[359574513,1746137439649,-1000.0,0.00027592,2]
[359574514,1746137439658,-166.66,0.00027904,2]
[359574515,1746137439667,-207.4,0.00028403,2]
[359574516,1746137439677,-312.6,0.00028767,2]
[359574517,1746137439687,-897.2,0.00028767,2]
[359574518,1746137439696,-694.81,0.00028808,2]
[359574519,1746137439706,-169.85797928,0.00028941,2]
[359574521,1746137439715,-151.15062595,0.00029,2]
[359574522,1746137439724,-550.0,0.00029,2]
[359574523,1746137439733,-374.0,0.000293,2]
[359574524,1746137439743,-529.65030636,0.00029352,2]
[359574525,1746137439752,-896.72516716,0.00029352,2]
[359574526,1746137439761,-500.0,0.00029562,2]
[359574527,1746137439771,-236.0,0.000296,2]
[359574528,1746137439780,-215.0738,0.00029772,2]
[359574529,1746137439789,-557.405,0.00029929,2]
[359574530,1746137439799,-1158.44044072,0.0003,10]
[359574531,1746137439808,-1422.79,0.0003,2]
[359574532,1746137439818,-1246.67556792,0.0003,2]
[359574533,1746137439827,-600.0,0.0003,2]
[359574534,1746137439837,-600.0,0.0003,3]
[359574535,1746137439847,-159.0,0.0003,2]
[359574536,1746137439856,-705.71061426,0.0003,4]
[359574537,1746137439866,-1000.0,0.00030101,2]
[359574538,1746137439876,-10497.66,0.0003011,2]
[359574539,1746137439887,-312.6,0.00030136,2]
[359574540,1746137439897,-150.0,0.00030137,2]
[359574541,1746137439907,-610.0,0.00030137,2]
[359574542,1746137439916,-897.2,0.00030137,2]
[359574543,1746137439926,-500.0,0.00030137,2]
[359574544,1746137439935,-233.75789708,0.00030137,2]
[359574545,1746137439945,-797.0,0.00030169,2]
[359574546,1746137439955,-382.07835786,0.00030187,2]
[359574547,1746137439964,-764.0,0.000302,2]
[359574548,1746137439975,-1000.0,0.00030299,5]
[359574549,1746137439984,-1003.06857668,0.00030299,5]
[359574550,1746137439996,-931.81498311,0.00030322,5]
[359574551,1746137440006,-1000.0,0.00030354,5]
[359574552,1746137440017,-500.0,0.00030384,2]
[359574553,1746137440027,-1268.09,0.00030418,2]
[359574554,1746137440036,-150.0,0.0003093,2]
[359574555,1746137440046,-600.0,0.00031,2]
[359574556,1746137440055,-694.81,0.00031072,2]
[359574557,1746137440066,-223.0315306,0.00031141,2]
[359574558,1746137440076,-312.6,0.00031506,2]
[359574559,1746137440085,-897.2,0.00031507,2]
[359574560,1746137440095,-150.0,0.00031723,2]
[359574561,1746137440104,-1273.0,0.000318,2]
[359574562,1746137440114,-615.668,0.00031918,30]
[359574563,1746137440124,-169.85797928,0.00031955,2]
[359574564,1746137440133,-231.28369723,0.0003251,2]
[359574565,1746137440143,-150.0,0.00032516,2]
[359574566,1746137440152,-200.0,0.00032777,2]
[359574567,1746137440161,-1000.0,0.00032876,2]
[359574568,1746137440171,-1000.0,0.00032876,2]
[359574569,1746137440180,-1000.0,0.00032876,2]
[359574570,1746137440189,-1000.0,0.00032876,2]
[359574571,1746137440198,-1000.0,0.00032876,2]
[359574572,1746137440207,-1000.0,0.00032876,2]
[359574573,1746137440216,-312.6,0.00032876,2]
[359574574,1746137440226,-176.59,0.00032877,30]
[359574575,1746137440235,-897.2,0.00032877,2]
[359574576,1746137440246,-195.01,0.00032883,2]
[359574577,1746137440256,-1060.87909843,0.00033,2]
[359574578,1746137440269,-1329.38,0.00033,2]
[359574579,1746137440611,-22758.81432307,0.00033,2]
[359574580,1746137440621,-650.0,0.00033,2]
[359574581,1746137440630,-150.0,0.00033088,2]
[359574582,1746137440640,-165.38,0.00033088,2]
[359574583,1746137440649,-1000.0,0.00033165,2]
[359574584,1746137440659,-797.0,0.00033169,2]
[359574585,1746137440668,-150.0,0.00033309,2]
[359574586,1746137440677,-694.81,0.00033336,2]
[359574587,1746137440691,-553.0,0.00033382,2]
[359574588,1746137440701,-451.39,0.00033382,2]
[359574589,1746137440711,-451.39,0.00033382,2]
[359574590,1746137440720,-451.39,0.00033382,2]
[359574591,1746137440730,-451.39,0.00033382,2]
[359574592,1746137440740,-451.39,0.00033382,2]
[359574593,1746137440750,-451.39,0.00033382,2]
[359574594,1746137440760,-451.39,0.00033382,2]
[359574595,1746137440769,-451.39,0.00033382,2]
[359574596,1746137440782,-451.39,0.00033382,2]
[359574597,1746137440792,-451.39,0.00033382,2]
[359574598,1746137440802,-451.39,0.00033382,2]
[359574599,1746137440812,-451.39,0.00033382,2]
[359574600,1746137440823,-451.39,0.00033382,2]
[359574601,1746137440833,-451.39,0.00033382,2]
[359574602,1746137440842,-451.39,0.00033382,2]
[359574603,1746137440852,-451.39,0.00033382,2]
[359574604,1746137440862,-239.84119403,0.00033879,2]
[359574605,1746137440872,-300.0,0.0003391,2]
[359574606,1746137440883,-1974.18985317,0.00034,2]
[359574607,1746137440893,-154.63,0.00034,2]
[359574608,1746137440903,-150.0,0.0003402,2]
[359574609,1746137440913,-150.0,0.00034044,2]
[359574610,1746137440923,-160.37153565,0.00034093,2]
[359574611,1746137440933,-150.0,0.00034102,2]
[359574612,1746137440943,-150.0,0.00034114,2]
[359574613,1746137440953,-150.0,0.00034123,2]
[359574614,1746137440963,-150.0,0.0003414,2]
[359574615,1746137440973,-150.0,0.0003416,2]
[359574616,1746137440982,-150.0,0.00034178,2]
[359574617,1746137440992,-451.39,0.00034204,2]
[359574618,1746137441002,-451.39,0.00034204,2]
[359574619,1746137441012,-451.39,0.00034204,2]
[359574620,1746137441022,-312.6,0.00034246,2]
[359574621,1746137441032,-150.0,0.00034548,10]
[359574622,1746137441042,-687.2532006,0.00034548,4]
[359574623,1746137441053,-152.0,0.00034616,3]
[359574624,1746137441063,-291.0,0.00034627,7]
[359574625,1746137441073,-754.47259851,0.00034877,5]
[359574626,1746137441083,-150.0,0.00034895,2]
[359574627,1746137441093,-169.85797928,0.00034968,2]
[359574628,1746137441103,-1197.61856956,0.00035,2]
[359574629,1746137441113,-74304.40037849,0.00035,2]
[359574630,1746137441123,-368.95,0.00035068,2]
[359574631,1746137441133,-248.71531821,0.00035248,2]
[359574632,1746137441142,-4499.2,0.000353,2]
[359574633,1746137441154,-4499.2,0.000353,2]
[359574634,1746137441163,-2110.0,0.00035438,2]
[359574635,1746137441174,-694.81,0.000356,2]
[359574636,1746137441184,-743.4846377,0.00035606,2]
[359574637,1746137441194,-154.63,0.00035606,2]
[359574638,1746137441205,-500.0,0.00035615,10]
[359574639,1746137441215,-500.0,0.00035615,10]
[359574640,1746137441225,-151.0,0.00035615,7]
[359574641,1746137441235,-525.983902,0.00035615,7]
[359574642,1746137441246,-525.983902,0.00035615,7]
[359574643,1746137441255,-151.0,0.00035615,7]
[359574644,1746137441264,-151.0,0.00035615,7]
[359574645,1746137441274,-151.0,0.00035615,7]
[359574646,1746137441283,-151.0,0.00035615,7]
[359574647,1746137441293,-203.782142,0.00035615,7]
[359574648,1746137441304,-203.782142,0.00035615,7]
[359574649,1746137441316,-596.731986,0.00035615,7]
[359574650,1746137441326,-596.731986,0.00035615,7]
[359574651,1746137441336,-354.88552047,0.00035615,2]
[359574652,1746137441346,-1256202.71139493,0.00035615,2]
[359574653,1746137441356,-2290.92749049,0.00035616,2]
[359574654,1746137441365,-1234.58,0.00035616,5]
[359574655,1746137441375,-1212.47085017,0.00035616,5]
[359574656,1746137441386,-199.247676,0.00035616,7]
[359574657,1746137441396,-209.242203,0.00035616,7]
[359574658,1746137441406,-151.0,0.00035616,7]
[359574659,1746137441416,-151.0,0.00035616,7]
[359574660,1746137441426,-450.0,0.00035616,2]
[359574661,1746137441436,-450.0,0.00035616,2]
[359574662,1746137441446,-450.0,0.00035616,11]
[359574663,1746137441455,-450.0,0.00035616,3]
[359574664,1746137441465,-510.94729012,0.00035616,11]
[359574665,1746137441476,-620.25,0.00035616,11]
[359574666,1746137441486,-470.0,0.00035616,11]
[359574667,1746137441497,-822.32,0.00035616,11]
[359574668,1746137441507,-470.0,0.00035616,11]
[359574669,1746137441518,-437.02685647,0.00035616,11]
[359574670,1746137441528,-1695.93,0.00035616,2]
[359574671,1746137441538,-589.17004158,0.00035616,11]
[359574672,1746137441548,-283.23952419,0.00035616,11]
[359574673,1746137441558,-527.32593544,0.00035616,11]
[359574674,1746137441568,-530.0,0.00035616,11]
[359574675,1746137441578,-450.0,0.00035616,11]
[359574676,1746137441587,-450.0,0.00035616,11]
[359574677,1746137441597,-450.0,0.00035616,11]
[359574678,1746137441607,-450.0,0.00035616,11]
[359574679,1746137441617,-674.63,0.00035616,11]
[359574680,1746137441627,-470.0,0.00035616,11]
[359574681,1746137441636,-450.0,0.00035616,11]
[359574682,1746137441646,-450.0,0.00035616,11]
[359574683,1746137441655,-470.0,0.00035616,11]
[359574684,1746137441665,-470.0,0.00035616,11]
[359574685,1746137441675,-570.89202506,0.00035616,11]
[359574686,1746137441685,-450.0,0.00035616,11]
[359574687,1746137441695,-1932.82,0.00035616,11]
[359574688,1746137441705,-1153.29,0.00035616,11]
[359574689,1746137441715,-450.0,0.00035616,11]
[359574690,1746137441725,-450.0,0.00035616,11]
[359574691,1746137441736,-450.0,0.00035616,11]
[359574692,1746137441747,-450.0,0.00035616,11]
[359574693,1746137441757,-578.29,0.00035616,11]
[359574694,1746137441767,-450.0,0.00035616,11]
[359574695,1746137441777,-545.54808944,0.00035616,11]
[359574696,1746137441786,-430.01230737,0.00035616,11]
[359574697,1746137441796,-450.0,0.00035616,11]
[359574698,1746137441806,-450.0,0.00035616,11]
[359574699,1746137441816,-470.0,0.00035616,11]
[359574700,1746137441826,-450.0,0.00035616,11]
[359574701,1746137441836,-715.1,0.00035616,11]
[359574702,1746137441846,-508.4729682,0.00035616,11]
[359574703,1746137441855,-470.0,0.00035616,11]
[359574704,1746137441865,-450.0,0.00035616,11]
[359574705,1746137441875,-555.7194512,0.00035616,11]
[359574706,1746137441885,-450.0,0.00035616,11]
[359574707,1746137441895,-470.0,0.00035616,11]
[359574708,1746137441904,-578.53276195,0.00035616,11]
[359574709,1746137441914,-540.67462839,0.00035616,11]
[359574710,1746137441924,-450.0,0.00035616,11]
[359574711,1746137441933,-450.0,0.00035616,11]
[359574712,1746137441943,-450.0,0.00035616,11]
[359574713,1746137441953,-450.0,0.00035616,11]
[359574714,1746137441963,-470.0,0.00035616,11]
[359574715,1746137441973,-470.0,0.00035616,11]
[359574716,1746137441983,-364.21772956,0.00035616,11]
[359574717,1746137441993,-517.42484704,0.00035616,11]
[359574718,1746137442003,-500.0,0.00035616,11]
[359574719,1746137442013,-500.0,0.00035616,11]
[359574720,1746137442023,-624.88142714,0.00035616,11]
[359574721,1746137442033,-470.0,0.00035616,11]
[359574722,1746137442043,-450.0,0.00035616,11]
[359574723,1746137442052,-450.0,0.00035616,11]
[359574724,1746137442062,-450.0,0.00035616,11]
[359574725,1746137442072,-451.73,0.00035616,11]
[359574726,1746137442082,-450.0,0.00035616,11]
[359574727,1746137442091,-450.0,0.00035616,11]
[359574728,1746137442101,-493.94,0.00035616,11]
[359574729,1746137442111,-450.0,0.00035616,11]
[359574730,1746137442120,-650.18,0.00035616,11]
[359574731,1746137442130,-522.13004165,0.00035616,11]
[359574732,1746137442140,-450.0,0.00035616,11]
[359574733,1746137442149,-450.0,0.00035616,11]
[359574734,1746137442159,-470.0,0.00035616,11]
[359574735,1746137442168,-450.0,0.00035616,11]
[359574736,1746137442178,-488.39889744,0.00035616,11]
[359574737,1746137442188,-450.0,0.00035616,11]
[359574738,1746137442197,-613.48,0.00035616,11]
[359574739,1746137442208,-450.0,0.00035616,11]
[359574740,1746137442218,-450.0,0.00035616,11]
[359574741,1746137442227,-450.0,0.00035616,11]
[359574742,1746137442237,-566.17898396,0.00035616,11]
[359574743,1746137442249,-484.13,0.00035616,11]
[359574744,1746137442258,-470.0,0.00035616,11]
[359574745,1746137442268,-504.43979664,0.00035616,11]
[359574746,1746137442278,-470.0,0.00035616,11]
[359574747,1746137442288,-450.0,0.00035616,11]
[359574748,1746137442298,-470.0,0.00035616,11]
[359574749,1746137442308,-450.0,0.00035616,11]
[359574750,1746137442321,-450.0,0.00035616,11]
[359574751,1746137442331,-450.0,0.00035616,11]
[359574752,1746137442340,-450.0,0.00035616,11]
[359574753,1746137442351,-450.0,0.00035616,11]
[359574754,1746137442360,-470.0,0.00035616,11]
[359574755,1746137442370,-613.96,0.00035616,11]
[359574756,1746137442380,-450.0,0.00035616,11]
[359574757,1746137442390,-450.0,0.00035616,11]
[359574758,1746137442400,-521.97863277,0.00035616,11]
[359574759,1746137442411,-500.0,0.00035616,11]
[359574760,1746137442420,-500.0,0.00035616,11]
[359574761,1746137442430,-500.0,0.00035616,11]
[359574762,1746137442440,-500.0,0.00035616,11]
[359574763,1746137442449,-500.0,0.00035616,11]
[359574764,1746137442665,-507.77604178,0.00035616,11]
[359574765,1746137442686,-1485.28,0.00035616,11]
[359574766,1746137442696,-500.0,0.00035616,11]
[359574767,1746137442706,-500.0,0.00035616,11]
[359574768,1746137442715,-500.0,0.00035616,11]
[359574769,1746137442724,-519.87605263,0.00035616,11]
[359574770,1746137442734,-450.0,0.00035616,11]
[359574771,1746137442744,-550.3813052,0.00035616,11]
[359574772,1746137442754,-766.2,0.00035616,11]
[359574773,1746137442764,-450.0,0.00035616,11]
[359574774,1746137442773,-470.0,0.00035616,11]
[359574775,1746137442783,-470.0,0.00035616,11]
[359574776,1746137442792,-470.0,0.00035616,11]
[359574777,1746137442802,-450.0,0.00035616,11]
[359574779,1746137442811,-470.0,0.00035616,11]
[359574781,1746137442821,-637.94,0.00035616,11]
[359574783,1746137442832,-450.0,0.00035616,11]
[359574784,1746137442841,-450.0,0.00035616,11]
[359574785,1746137442851,-450.0,0.00035616,11]
[359574786,1746137442861,-450.0,0.00035616,11]
[359574787,1746137442871,-575.81,0.00035616,11]
[359574788,1746137442881,-470.0,0.00035616,11]
[359574789,1746137442890,-485.98,0.00035616,11]
[359574790,1746137442900,-470.0,0.00035616,11]
[359574791,1746137442910,-450.0,0.00035616,11]
[359574792,1746137442919,-529.91644247,0.00035616,11]
[359574793,1746137442930,-470.0,0.00035616,11]
[359574794,1746137442939,-1051.09,0.00035616,11]
[359574795,1746137442949,-450.0,0.00035616,11]
[359574796,1746137442959,-450.0,0.00035616,11]
[359574797,1746137442969,-450.0,0.00035616,11]
[359574798,1746137442979,-470.0,0.00035616,11]
[359574799,1746137442988,-450.0,0.00035616,11]
[359574800,1746137442998,-470.0,0.00035616,11]
[359574801,1746137443008,-470.0,0.00035616,11]
[359574802,1746137443018,-470.0,0.00035616,11]
[359574803,1746137443027,-450.0,0.00035616,11]
[359574804,1746137443037,-450.0,0.00035616,11]
[359574805,1746137443047,-1057.75,0.00035616,11]